[Event "Titled Tuesday Blitz October 31 Late 2023"]
[White "Hoang, Thi Bao Tram"]
[Black "Hamitevici, Vladimir"]
[WhiteFideId "12401102"]
[BlackFideId "13902393"]
[WhiteElo "2566"]
[BlackElo "2719"]
[Result "0-1"]
[Round "9"]
[TimeControl "180+1"]
[Date "2023.10.31"]
[WhiteClock "0:00:10"]
[BlackClock "0:00:09"]
[Board "30"]

1. Nf3 {[%clk 0:03:00]}  d6 {[%clk 0:03:00]} 2. g3 {[%clk 0:02:56]}  e5 {[%clk 0:02:58]} 3. d3 {[%clk 0:02:56]}  f5 {[%clk 0:02:58]} 4. Bg2 {[%clk 0:02:53]}  Nf6 {[%clk 0:02:58]} 5. Nc3 {[%clk 0:02:46]}  Be7 {[%clk 0:02:58]} 6. Bg5 {[%clk 0:02:42]}  O-O {[%clk 0:02:55]} 7. h4 {[%clk 0:02:39]}  Nbd7 {[%clk 0:02:51]} 8. h5 {[%clk 0:02:35]}  h6 {[%clk 0:02:48]} 9. Bd2 {[%clk 0:02:27]}  Qe8 {[%clk 0:02:48]} 10. e4 {[%clk 0:02:14]}  fxe4 {[%clk 0:02:22]} 11. dxe4 {[%clk 0:02:07]}  Nc5 {[%clk 0:02:14]} 12. Nh4 {[%clk 0:01:40]}  Bg4 {[%clk 0:02:14]} 13. f3 {[%clk 0:01:40]}  Bxh5 {[%clk 0:02:09]} 14. g4 {[%clk 0:01:40]}  Bg6 {[%clk 0:01:51]} 15. Qe2 {[%clk 0:01:35]}  Ne6 {[%clk 0:01:42]} 16. Be3 {[%clk 0:01:30]}  Nf4 {[%clk 0:01:23]} 17. Bxf4 {[%clk 0:01:24]}  exf4 {[%clk 0:01:24]} 18. Qc4+ {[%clk 0:01:22]}  Bf7 {[%clk 0:01:21]} 19. Qxc7 {[%clk 0:01:20]}  Rc8 {[%clk 0:01:21]} 20. Qa5 {[%clk 0:01:11]}  d5 {[%clk 0:01:12]} 21. O-O-O {[%clk 0:00:57]}  b6 {[%clk 0:00:47]} 22. Qb5 {[%clk 0:00:44]}  dxe4 {[%clk 0:00:33]} 23. fxe4 {[%clk 0:00:37]}  Qxb5 {[%clk 0:00:21]} 24. Nxb5 {[%clk 0:00:37]}  Nxg4 {[%clk 0:00:20]} 25. Nf5 {[%clk 0:00:35]}  Bg5 {[%clk 0:00:20]} 26. Bf3 {[%clk 0:00:24]}  Ne5 {[%clk 0:00:21]} 27. Nbd4 {[%clk 0:00:24]}  Rfd8 {[%clk 0:00:19]} 28. c3 {[%clk 0:00:22]}  Bxa2 {[%clk 0:00:17]} 29. Rdg1 {[%clk 0:00:17]}  Bc4 {[%clk 0:00:11]} 30. Kc2 {[%clk 0:00:15]}  Nxf3 {[%clk 0:00:11]} 31. Nxf3 {[%clk 0:00:14]}  Bd3+ {[%clk 0:00:12]} 32. Kb3 {[%clk 0:00:15]}  Bxe4 {[%clk 0:00:13]} 33. Nxg5 {[%clk 0:00:13]}  hxg5 {[%clk 0:00:06]} 34. Ne7+ {[%clk 0:00:11]}  Kf7 {[%clk 0:00:06]} 35. Nxc8 {[%clk 0:00:12]}  Bxh1 {[%clk 0:00:06]} 36. Nxa7 {[%clk 0:00:11]}  Bd5+ {[%clk 0:00:07]} 37. c4 {[%clk 0:00:11]}  Be6 {[%clk 0:00:06]} 38. Nc6 {[%clk 0:00:10]}  Rd3+ {[%clk 0:00:05]} 39. Kb4 {[%clk 0:00:10]}  Re3 {[%clk 0:00:05]} 40. Nd4 {[%clk 0:00:10]}  Re4 {[%clk 0:00:03]} 41. Nf3 {[%clk 0:00:09]}  g4 {[%clk 0:00:03]} 42. Ng5+ {[%clk 0:00:09]}  Kg6 {[%clk 0:00:04]} 43. Nxe4 {[%clk 0:00:10]}  Kf5 {[%clk 0:00:04]} 44. Nd6+ {[%clk 0:00:11]}  Ke5 {[%clk 0:00:05]} 45. Nb5 {[%clk 0:00:10]}  f3 {[%clk 0:00:06]} 46. Re1+ {[%clk 0:00:10]}  Kf6 {[%clk 0:00:05]} 47. Nd4 {[%clk 0:00:10]}  Bf5 {[%clk 0:00:05]} 48. Nxf3 {[%clk 0:00:09]}  gxf3 {[%clk 0:00:05]} 49. Rf1 {[%clk 0:00:09]}  Be4 {[%clk 0:00:05]} 50. Kb5 {[%clk 0:00:10]}  g5 {[%clk 0:00:06]} 51. Kxb6 {[%clk 0:00:11]}  g4 {[%clk 0:00:06]} 52. c5 {[%clk 0:00:12]}  g3 {[%clk 0:00:07]} 53. c6 {[%clk 0:00:13]}  g2 {[%clk 0:00:08]} 54. Rc1 {[%clk 0:00:12]}  Bf5 {[%clk 0:00:07]} 55. c7 {[%clk 0:00:11]}  f2 {[%clk 0:00:08]} 56. Rc6+ {[%clk 0:00:12]}  Ke7 {[%clk 0:00:07]} 57. Rc5 {[%clk 0:00:11]}  Bc8 {[%clk 0:00:08]} 58. Re5+ {[%clk 0:00:11]}  Kd6 {[%clk 0:00:07]} 59. Re8 {[%clk 0:00:11]}  f1=Q {[%clk 0:00:07]} 60. Rxc8 {[%clk 0:00:12]}  g1=Q+ {[%clk 0:00:08]} 61. Kb7 {[%clk 0:00:12]}  Qfg2+ {[%clk 0:00:08]} 62. Ka6 {[%clk 0:00:11]}  Q1f1+ {[%clk 0:00:07]} 63. Ka5 {[%clk 0:00:11]}  Qd5+ {[%clk 0:00:07]} 64. Ka4 {[%clk 0:00:10]}  Qfb5+ {[%clk 0:00:08]} 65. Ka3 {[%clk 0:00:10]}  Qdb3# {[%clk 0:00:09]} 0-1


[Site "https://www.chess.com"]

[Event "Titled Tuesday Blitz October 31 Late 2023"]
[White "Leiva, Gianmarco"]
[Black "Likvidator228"]
[WhiteFideId "3804399"]
[WhiteElo "2693"]
[BlackElo "2561"]
[Result "0-1"]
[Round "9"]
[TimeControl "180+1"]
[Date "2023.10.31"]
[WhiteClock "0:00:00"]
[BlackClock "0:00:20"]
[Board "33"]

1. e4 {[%clk 0:02:49]}  c5 {[%clk 0:02:59]} 2. Nf3 {[%clk 0:02:48]}  g6 {[%clk 0:02:59]} 3. c3 {[%clk 0:02:43]}  d5 {[%clk 0:02:56]} 4. e5 {[%clk 0:02:31]}  a6 {[%clk 0:02:54]} 5. d4 {[%clk 0:02:29]}  Nc6 {[%clk 0:02:54]} 6. Nbd2 {[%clk 0:02:14]}  Bg7 {[%clk 0:02:52]} 7. Bd3 {[%clk 0:02:09]}  f6 {[%clk 0:02:52]} 8. exf6 {[%clk 0:02:08]}  Nxf6 {[%clk 0:02:52]} 9. O-O {[%clk 0:02:02]}  O-O {[%clk 0:02:52]} 10. Re1 {[%clk 0:02:00]}  Nh5 {[%clk 0:02:49]} 11. Bf1 {[%clk 0:01:45]}  cxd4 {[%clk 0:02:49]} 12. cxd4 {[%clk 0:01:45]}  Nxd4 {[%clk 0:02:49]} 13. Nxd4 {[%clk 0:01:32]}  Bxd4 {[%clk 0:02:48]} 14. Nf3 {[%clk 0:01:30]}  Bg7 {[%clk 0:02:48]} 15. Bg5 {[%clk 0:01:29]}  Bf6 {[%clk 0:02:42]} 16. Bh6 {[%clk 0:01:19]}  Re8 {[%clk 0:02:36]} 17. Ne5 {[%clk 0:00:32]}  e6 {[%clk 0:02:16]} 18. Qg4 {[%clk 0:00:26]}  Ng7 {[%clk 0:02:06]} 19. Bd3 {[%clk 0:00:20]}  Bxe5 {[%clk 0:01:54]} 20. Rxe5 {[%clk 0:00:20]}  Qf6 {[%clk 0:01:52]} 21. Rae1 {[%clk 0:00:19]}  Bd7 {[%clk 0:01:52]} 22. h4 {[%clk 0:00:14]}  Rf8 {[%clk 0:01:33]} 23. f3 {[%clk 0:00:06]}  Rf7 {[%clk 0:01:24]} 24. h5 {[%clk 0:00:06]}  gxh5 {[%clk 0:01:14]} 25. Rxh5 {[%clk 0:00:07]}  e5 {[%clk 0:01:11]} 26. Qg3 {[%clk 0:00:06]}  e4 {[%clk 0:00:49]} 27. fxe4 {[%clk 0:00:06]}  Kh8 {[%clk 0:00:47]} 28. Rh4 {[%clk 0:00:02]}  dxe4 {[%clk 0:00:39]} 29. Bxe4 {[%clk 0:00:02]}  Bf5 {[%clk 0:00:39]} 30. Rf1 {[%clk 0:00:01]}  Rg8 {[%clk 0:00:21]} 31. Bxg7+ {[%clk 0:00:00]}  Rgxg7 {[%clk 0:00:20]} 0-1


[Site "https://www.chess.com"]

[Event "Titled Tuesday Blitz October 31 Late 2023"]
[White "Pinheiro, Iung Alicio de O."]
[Black "maksimys18"]
[WhiteFideId "2104350"]
[WhiteElo "2644"]
[BlackElo "2543"]
[Result "1/2-1/2"]
[Round "9"]
[TimeControl "180+1"]
[Date "2023.10.31"]
[WhiteClock "0:00:12"]
[BlackClock "0:00:12"]
[Board "37"]

1. d4 {[%clk 0:03:00]}  e6 {[%clk 0:03:00]} 2. Nf3 {[%clk 0:03:00]}  d5 {[%clk 0:03:01]} 3. Bf4 {[%clk 0:02:41]}  Bd6 {[%clk 0:03:00]} 4. Bg3 {[%clk 0:02:39]}  f5 {[%clk 0:03:00]} 5. e3 {[%clk 0:02:34]}  Nf6 {[%clk 0:03:00]} 6. Nbd2 {[%clk 0:02:33]}  O-O {[%clk 0:02:59]} 7. c4 {[%clk 0:02:26]}  c6 {[%clk 0:02:58]} 8. Qc2 {[%clk 0:02:25]}  Ne4 {[%clk 0:02:57]} 9. Bxd6 {[%clk 0:02:24]}  Qxd6 {[%clk 0:02:57]} 10. c5 {[%clk 0:02:10]}  Qc7 {[%clk 0:02:53]} 11. Ne5 {[%clk 0:02:07]}  Nd7 {[%clk 0:02:53]} 12. Ndf3 {[%clk 0:02:06]}  Nxe5 {[%clk 0:02:52]} 13. Nxe5 {[%clk 0:02:06]}  Qa5+ {[%clk 0:02:50]} 14. Kd1 {[%clk 0:02:01]}  f4 {[%clk 0:02:46]} 15. f3 {[%clk 0:01:57]}  Ng5 {[%clk 0:02:09]} 16. h4 {[%clk 0:01:45]}  Nf7 {[%clk 0:02:09]} 17. exf4 {[%clk 0:01:13]}  Nxe5 {[%clk 0:02:08]} 18. fxe5 {[%clk 0:01:13]}  Rf4 {[%clk 0:02:08]} 19. Qd2 {[%clk 0:01:04]}  Qa4+ {[%clk 0:02:03]} 20. b3 {[%clk 0:01:04]}  Qxd4 {[%clk 0:02:03]} 21. Qxd4 {[%clk 0:01:01]}  Rxd4+ {[%clk 0:02:02]} 22. Kc2 {[%clk 0:01:01]}  Bd7 {[%clk 0:02:00]} 23. g3 {[%clk 0:00:57]}  b6 {[%clk 0:01:59]} 24. cxb6 {[%clk 0:00:49]}  axb6 {[%clk 0:01:59]} 25. a4 {[%clk 0:00:43]}  Be8 {[%clk 0:01:53]} 26. Bd3 {[%clk 0:00:39]}  c5 {[%clk 0:01:54]} 27. Kc3 {[%clk 0:00:39]}  Rb4 {[%clk 0:01:37]} 28. f4 {[%clk 0:00:38]}  Bc6 {[%clk 0:01:35]} 29. Rhf1 {[%clk 0:00:37]}  d4+ {[%clk 0:01:34]} 30. Kc2 {[%clk 0:00:37]}  Bd5 {[%clk 0:01:34]} 31. Rab1 {[%clk 0:00:36]}  g6 {[%clk 0:01:27]} 32. g4 {[%clk 0:00:35]}  Bc6 {[%clk 0:01:03]} 33. Bc4 {[%clk 0:00:31]}  Be4+ {[%clk 0:01:03]} 34. Bd3 {[%clk 0:00:28]}  Bxd3+ {[%clk 0:01:01]} 35. Kxd3 {[%clk 0:00:28]}  b5 {[%clk 0:01:01]} 36. axb5 {[%clk 0:00:27]}  Ra3 {[%clk 0:00:55]} 37. Kc2 {[%clk 0:00:22]}  Ra2+ {[%clk 0:00:44]} 38. Kd3 {[%clk 0:00:20]}  Ra3 {[%clk 0:00:31]} 39. Kc2 {[%clk 0:00:20]}  Rxb5 {[%clk 0:00:30]} 40. f5 {[%clk 0:00:20]}  exf5 {[%clk 0:00:30]} 41. gxf5 {[%clk 0:00:21]}  c4 {[%clk 0:00:27]} 42. bxc4 {[%clk 0:00:19]}  Rc3+ {[%clk 0:00:26]} 43. Kd2 {[%clk 0:00:19]}  Rxe5 {[%clk 0:00:24]} 44. fxg6 {[%clk 0:00:18]}  hxg6 {[%clk 0:00:24]} 45. Rb8+ {[%clk 0:00:18]}  Kg7 {[%clk 0:00:24]} 46. Rb7+ {[%clk 0:00:18]}  Kh6 {[%clk 0:00:23]} 47. Rff7 {[%clk 0:00:16]}  Kh5 {[%clk 0:00:23]} 48. Rh7+ {[%clk 0:00:16]}  Kg4 {[%clk 0:00:24]} 49. Rbg7 {[%clk 0:00:16]}  Re6 {[%clk 0:00:17]} 50. h5 {[%clk 0:00:14]}  Rxc4 {[%clk 0:00:13]} 51. Rxg6+ {[%clk 0:00:14]}  Rxg6 {[%clk 0:00:11]} 52. hxg6 {[%clk 0:00:15]}  Rc8 {[%clk 0:00:11]} 53. Rf7 {[%clk 0:00:12]}  Kg5 {[%clk 0:00:10]} 54. g7 {[%clk 0:00:12]}  Rg8 {[%clk 0:00:10]} 55. Kd3 {[%clk 0:00:12]}  Kg6 {[%clk 0:00:11]} 56. Rd7 {[%clk 0:00:12]}  Rxg7 {[%clk 0:00:11]} 57. Rxg7+ {[%clk 0:00:11]}  Kxg7 {[%clk 0:00:12]} 58. Kxd4 {[%clk 0:00:12]} 1/2-1/2


[Site "https://www.chess.com"]

[Event "Titled Tuesday Blitz October 31 Late 2023"]
[White "Tikhonov, Viacheslav"]
[Black "Manukyan, Sargis A."]
[WhiteFideId "44196407"]
[BlackFideId "13303970"]
[WhiteElo "2523"]
[BlackElo "2636"]
[Result "0-1"]
[Round "9"]
[TimeControl "180+1"]
[Date "2023.10.31"]
[WhiteClock "0:00:00"]
[BlackClock "0:00:37"]
[Board "39"]

1. e4 {[%clk 0:03:00]}  c5 {[%clk 0:02:57]} 2. Nf3 {[%clk 0:02:59]}  d6 {[%clk 0:02:58]} 3. Nc3 {[%clk 0:02:59]}  Nf6 {[%clk 0:02:57]} 4. e5 {[%clk 0:02:59]}  dxe5 {[%clk 0:02:57]} 5. Nxe5 {[%clk 0:03:00]}  Nbd7 {[%clk 0:02:57]} 6. d4 {[%clk 0:03:01]}  e6 {[%clk 0:02:57]} 7. Bb5 {[%clk 0:03:00]}  a6 {[%clk 0:02:55]} 8. Bxd7+ {[%clk 0:03:00]}  Nxd7 {[%clk 0:02:55]} 9. Qf3 {[%clk 0:02:58]}  Qf6 {[%clk 0:02:46]} 10. Bf4 {[%clk 0:02:57]}  cxd4 {[%clk 0:02:32]} 11. Ne4 {[%clk 0:02:57]}  Qf5 {[%clk 0:02:10]} 12. Nc4 {[%clk 0:02:50]}  Qd5 {[%clk 0:01:51]} 13. Ncd6+ {[%clk 0:02:11]}  Bxd6 {[%clk 0:01:51]} 14. Nxd6+ {[%clk 0:02:12]}  Kf8 {[%clk 0:01:50]} 15. Qxd5 {[%clk 0:02:04]}  exd5 {[%clk 0:01:50]} 16. O-O-O {[%clk 0:02:05]}  Nf6 {[%clk 0:01:28]} 17. Rxd4 {[%clk 0:01:51]}  b5 {[%clk 0:01:25]} 18. Nxc8 {[%clk 0:01:36]}  Rxc8 {[%clk 0:01:24]} 19. Bg5 {[%clk 0:01:35]}  Ne4 {[%clk 0:01:09]} 20. Rxd5 {[%clk 0:01:19]}  Nxf2 {[%clk 0:01:06]} 21. Rf1 {[%clk 0:00:54]}  Ne4 {[%clk 0:01:05]} 22. Re1 {[%clk 0:00:30]}  Nxg5 {[%clk 0:01:01]} 23. Rxg5 {[%clk 0:00:31]}  g6 {[%clk 0:00:58]} 24. Rd5 {[%clk 0:00:29]}  Rc6 {[%clk 0:00:53]} 25. Rf1 {[%clk 0:00:24]}  Kg7 {[%clk 0:00:46]} 26. Rd7 {[%clk 0:00:23]}  Rf8 {[%clk 0:00:45]} 27. Kd2 {[%clk 0:00:22]}  h5 {[%clk 0:00:46]} 28. Kd3 {[%clk 0:00:20]}  g5 {[%clk 0:00:46]} 29. Rd5 {[%clk 0:00:19]}  Kg6 {[%clk 0:00:44]} 30. b3 {[%clk 0:00:15]}  Rfc8 {[%clk 0:00:43]} 31. Rff5 {[%clk 0:00:09]}  f6 {[%clk 0:00:41]} 32. h4 {[%clk 0:00:07]}  gxh4 {[%clk 0:00:39]} 33. Rxh5 {[%clk 0:00:06]}  Rc3+ {[%clk 0:00:39]} 34. Kd4 {[%clk 0:00:05]}  Rxc2 {[%clk 0:00:40]} 35. Rxh4 {[%clk 0:00:05]}  Rxg2 {[%clk 0:00:38]} 36. a4 {[%clk 0:00:04]}  Rd2+ {[%clk 0:00:37]} 37. Ke4 {[%clk 0:00:00]}  Re8+ {[%clk 0:00:37]} 0-1


[Site "https://www.chess.com"]

[Event "Titled Tuesday Blitz October 31 Late 2023"]
[White "Kornyukov, Alexey"]
[Black "Haydon, David L"]
[WhiteFideId "4150457"]
[BlackFideId "415405"]
[WhiteElo "2349"]
[BlackElo "2633"]
[Result "0-1"]
[Round "9"]
[TimeControl "180+1"]
[Date "2023.10.31"]
[WhiteClock "0:00:00"]
[BlackClock "0:00:56"]
[Board "40"]

1. d4 {[%clk 0:02:53]}  Nf6 {[%clk 0:02:59]} 2. c4 {[%clk 0:02:52]}  e6 {[%clk 0:02:59]} 3. Nc3 {[%clk 0:02:51]}  d5 {[%clk 0:02:59]} 4. cxd5 {[%clk 0:02:51]}  exd5 {[%clk 0:02:58]} 5. Bg5 {[%clk 0:02:51]}  c6 {[%clk 0:02:58]} 6. e3 {[%clk 0:02:52]}  Be6 {[%clk 0:02:58]} 7. Bd3 {[%clk 0:02:49]}  Nbd7 {[%clk 0:02:58]} 8. Nf3 {[%clk 0:02:41]}  Be7 {[%clk 0:02:56]} 9. O-O {[%clk 0:02:28]}  O-O {[%clk 0:02:55]} 10. h3 {[%clk 0:02:25]}  a6 {[%clk 0:02:54]} 11. Rc1 {[%clk 0:02:20]}  Rc8 {[%clk 0:02:53]} 12. Bf4 {[%clk 0:02:16]}  Nh5 {[%clk 0:02:47]} 13. Bh2 {[%clk 0:02:14]}  f5 {[%clk 0:02:47]} 14. Ne5 {[%clk 0:02:04]}  Nhf6 {[%clk 0:02:44]} 15. Qc2 {[%clk 0:01:47]}  Nxe5 {[%clk 0:02:41]} 16. Bxe5 {[%clk 0:01:40]}  Nd7 {[%clk 0:02:34]} 17. Bh2 {[%clk 0:01:35]}  Qe8 {[%clk 0:02:30]} 18. f3 {[%clk 0:01:31]}  Qg6 {[%clk 0:02:25]} 19. g4 {[%clk 0:01:16]}  c5 {[%clk 0:02:13]} 20. Qg2 {[%clk 0:01:08]}  Qf7 {[%clk 0:02:07]} 21. Kh1 {[%clk 0:00:55]}  b5 {[%clk 0:02:03]} 22. a3 {[%clk 0:00:50]}  cxd4 {[%clk 0:01:55]} 23. exd4 {[%clk 0:00:49]}  f4 {[%clk 0:01:54]} 24. Rfe1 {[%clk 0:00:43]}  Bh4 {[%clk 0:01:50]} 25. Re2 {[%clk 0:00:36]}  Nb6 {[%clk 0:01:50]} 26. Bg1 {[%clk 0:00:17]}  Nc4 {[%clk 0:01:48]} 27. Bf2 {[%clk 0:00:13]}  Bxf2 {[%clk 0:01:44]} 28. Qxf2 {[%clk 0:00:14]}  Ne3 {[%clk 0:01:44]} 29. Rce1 {[%clk 0:00:14]}  Qf6 {[%clk 0:01:41]} 30. Rxe3 {[%clk 0:00:13]}  fxe3 {[%clk 0:01:40]} 31. Rxe3 {[%clk 0:00:12]}  Qxd4 {[%clk 0:01:34]} 32. Qe2 {[%clk 0:00:11]}  Bf7 {[%clk 0:01:31]} 33. Kg2 {[%clk 0:00:08]}  Rce8 {[%clk 0:01:31]} 34. Rxe8 {[%clk 0:00:07]}  Rxe8 {[%clk 0:01:31]} 35. Qd2 {[%clk 0:00:08]}  g6 {[%clk 0:01:30]} 36. Ne2 {[%clk 0:00:05]}  Qe3 {[%clk 0:01:29]} 37. Qc2 {[%clk 0:00:05]}  d4 {[%clk 0:01:27]} 38. Be4 {[%clk 0:00:03]}  Bc4 {[%clk 0:01:26]} 39. Ng3 {[%clk 0:00:02]}  d3 {[%clk 0:01:25]} 40. Qc3 {[%clk 0:00:02]}  Rd8 {[%clk 0:01:16]} 41. Qf6 {[%clk 0:00:02]}  Qd4 {[%clk 0:01:15]} 42. Qe7 {[%clk 0:00:02]}  d2 {[%clk 0:01:13]} 43. Nh5 {[%clk 0:00:02]}  d1=Q {[%clk 0:01:05]} 44. Nf6+ {[%clk 0:00:02]}  Qxf6 {[%clk 0:01:03]} 45. Qxf6 {[%clk 0:00:03]}  Qf1+ {[%clk 0:01:01]} 46. Kg3 {[%clk 0:00:03]}  Qe1+ {[%clk 0:01:01]} 47. Kf4 {[%clk 0:00:03]}  Rf8 {[%clk 0:00:57]} 48. Qxf8+ {[%clk 0:00:02]}  Kxf8 {[%clk 0:00:57]} 49. Ke5 {[%clk 0:00:00]}  Ke7 {[%clk 0:00:56]} 0-1


[Site "https://www.chess.com"]

[Event "Titled Tuesday Blitz October 31 Late 2023"]
[White "Shubenkova, Veronika"]
[Black "Goltsev, Dmitry"]
[WhiteFideId "44124040"]
[BlackFideId "24176710"]
[WhiteElo "2537"]
[BlackElo "2655"]
[Result "0-1"]
[Round "9"]
[TimeControl "180+1"]
[Date "2023.10.31"]
[WhiteClock "0:00:01"]
[BlackClock "0:00:55"]
[Board "43"]

1. e4 {[%clk 0:03:00]}  e6 {[%clk 0:02:59]} 2. d4 {[%clk 0:03:01]}  d5 {[%clk 0:03:00]} 3. exd5 {[%clk 0:03:01]}  exd5 {[%clk 0:03:01]} 4. Nf3 {[%clk 0:03:02]}  Nf6 {[%clk 0:03:01]} 5. c3 {[%clk 0:03:02]}  c5 {[%clk 0:03:02]} 6. Bb5+ {[%clk 0:03:01]}  Nc6 {[%clk 0:03:02]} 7. O-O {[%clk 0:03:01]}  Be7 {[%clk 0:03:03]} 8. Bg5 {[%clk 0:03:00]}  O-O {[%clk 0:03:03]} 9. Nbd2 {[%clk 0:03:00]}  Bg4 {[%clk 0:03:03]} 10. Bxc6 {[%clk 0:03:00]}  bxc6 {[%clk 0:03:02]} 11. h3 {[%clk 0:02:57]}  Bh5 {[%clk 0:03:02]} 12. Qa4 {[%clk 0:02:56]}  Qb6 {[%clk 0:02:55]} 13. Ne5 {[%clk 0:02:54]}  Qxb2 {[%clk 0:02:45]} 14. Nxc6 {[%clk 0:02:51]}  Bd6 {[%clk 0:02:41]} 15. dxc5 {[%clk 0:02:40]}  Bxc5 {[%clk 0:02:39]} 16. Rab1 {[%clk 0:02:37]}  Qxc3 {[%clk 0:02:16]} 17. Rb3 {[%clk 0:02:07]}  Qc2 {[%clk 0:02:07]} 18. Bxf6 {[%clk 0:01:31]}  Qxd2 {[%clk 0:02:06]} 19. Rg3 {[%clk 0:01:18]}  Bg6 {[%clk 0:02:01]} 20. Be7 {[%clk 0:01:09]}  Bxe7 {[%clk 0:01:52]} 21. Nxe7+ {[%clk 0:01:09]}  Kh8 {[%clk 0:01:52]} 22. Qh4 {[%clk 0:01:05]}  Qc2 {[%clk 0:01:42]} 23. f4 {[%clk 0:01:02]}  Rae8 {[%clk 0:01:27]} 24. Kh2 {[%clk 0:00:51]}  Qe4 {[%clk 0:01:26]} 25. Nc6 {[%clk 0:00:21]}  d4 {[%clk 0:01:22]} 26. Ne5 {[%clk 0:00:21]}  Rxe5 {[%clk 0:01:20]} 27. Rg4 {[%clk 0:00:18]}  Rf5 {[%clk 0:01:16]} 28. Re1 {[%clk 0:00:18]}  Qd5 {[%clk 0:01:13]} 29. Qe7 {[%clk 0:00:18]}  Rg8 {[%clk 0:01:11]} 30. Qe8 {[%clk 0:00:16]}  h6 {[%clk 0:01:11]} 31. Qe7 {[%clk 0:00:08]}  d3 {[%clk 0:01:09]} 32. Rh4 {[%clk 0:00:07]}  d2 {[%clk 0:01:06]} 33. Rd1 {[%clk 0:00:07]}  Qd4 {[%clk 0:00:59]} 34. Qe2 {[%clk 0:00:04]}  Rxf4 {[%clk 0:00:58]} 35. Rxd2 {[%clk 0:00:03]}  Qf6 {[%clk 0:00:57]} 36. Rxf4 {[%clk 0:00:02]}  Qxf4+ {[%clk 0:00:58]} 37. g3 {[%clk 0:00:02]}  Qe4 {[%clk 0:00:57]} 38. Qf2 {[%clk 0:00:02]}  Re8 {[%clk 0:00:56]} 39. h4 {[%clk 0:00:02]}  Qe3 {[%clk 0:00:55]} 40. Qg2 {[%clk 0:00:02]}  Be4 {[%clk 0:00:54]} 41. Qf2 {[%clk 0:00:01]}  Qxf2+ {[%clk 0:00:54]} 42. Rxf2 {[%clk 0:00:02]}  f5 {[%clk 0:00:55]} 43. Rd2 {[%clk 0:00:01]}  Rc8 {[%clk 0:00:55]} 0-1


[Site "https://www.chess.com"]

[Event "Titled Tuesday Blitz October 31 Late 2023"]
[White "Seletsky, Grigory"]
[Black "Yelisieiev, Yevhenii"]
[WhiteFideId "14112191"]
[BlackFideId "14139642"]
[WhiteElo "2486"]
[BlackElo "2618"]
[Result "0-1"]
[Round "9"]
[TimeControl "180+1"]
[Date "2023.10.31"]
[WhiteClock "0:00:13"]
[BlackClock "0:00:47"]
[Board "47"]

1. b3 {[%clk 0:02:57]}  c5 {[%clk 0:02:55]} 2. Bb2 {[%clk 0:02:57]}  Nc6 {[%clk 0:02:55]} 3. Nf3 {[%clk 0:02:53]}  d6 {[%clk 0:02:55]} 4. e3 {[%clk 0:02:52]}  e5 {[%clk 0:02:55]} 5. c4 {[%clk 0:02:50]}  f5 {[%clk 0:02:49]} 6. Nc3 {[%clk 0:02:46]}  Nf6 {[%clk 0:02:40]} 7. d3 {[%clk 0:02:45]}  Be6 {[%clk 0:02:37]} 8. Be2 {[%clk 0:02:44]}  Be7 {[%clk 0:02:35]} 9. a3 {[%clk 0:02:38]}  h6 {[%clk 0:02:34]} 10. O-O {[%clk 0:02:37]}  O-O {[%clk 0:02:34]} 11. Nd2 {[%clk 0:02:32]}  d5 {[%clk 0:02:32]} 12. cxd5 {[%clk 0:02:31]}  Nxd5 {[%clk 0:02:33]} 13. Nxd5 {[%clk 0:02:28]}  Qxd5 {[%clk 0:02:33]} 14. Qc2 {[%clk 0:02:19]}  Rad8 {[%clk 0:02:31]} 15. Rfd1 {[%clk 0:02:18]}  f4 {[%clk 0:02:29]} 16. Nc4 {[%clk 0:02:06]}  fxe3 {[%clk 0:02:16]} 17. fxe3 {[%clk 0:02:03]}  Bg5 {[%clk 0:02:07]} 18. Bf3 {[%clk 0:02:00]}  Rxf3 {[%clk 0:01:59]} 19. gxf3 {[%clk 0:02:00]}  Qxf3 {[%clk 0:02:00]} 20. Qf2 {[%clk 0:01:59]}  Qg4+ {[%clk 0:01:47]} 21. Qg2 {[%clk 0:01:57]}  Qh5 {[%clk 0:01:41]} 22. a4 {[%clk 0:01:41]}  Nb4 {[%clk 0:01:15]} 23. e4 {[%clk 0:00:48]}  Nxd3 {[%clk 0:01:05]} 24. Rxd3 {[%clk 0:00:29]}  Rxd3 {[%clk 0:01:04]} 25. Bxe5 {[%clk 0:00:27]}  Bxc4 {[%clk 0:01:01]} 26. bxc4 {[%clk 0:00:25]}  Be3+ {[%clk 0:01:00]} 27. Kh1 {[%clk 0:00:26]}  Qxe5 {[%clk 0:01:01]} 28. Rf1 {[%clk 0:00:21]}  Rd4 {[%clk 0:00:58]} 29. h3 {[%clk 0:00:17]}  Qxe4 {[%clk 0:00:58]} 30. Rf3 {[%clk 0:00:17]}  Rd1+ {[%clk 0:00:56]} 31. Kh2 {[%clk 0:00:17]}  Bf4+ {[%clk 0:00:51]} 32. Rg3 {[%clk 0:00:17]}  Rd2 {[%clk 0:00:47]} 33. Qxd2 {[%clk 0:00:13]}  Bxd2 {[%clk 0:00:47]} 0-1


[Site "https://www.chess.com"]

[Event "Titled Tuesday Blitz October 31 Late 2023"]
[White "Kubicka, Anna"]
[Black "Karttunen, Mika"]
[WhiteFideId "1152254"]
[BlackFideId "502081"]
[WhiteElo "2480"]
[BlackElo "2593"]
[Result "1-0"]
[Round "9"]
[TimeControl "180+1"]
[Date "2023.10.31"]
[WhiteClock "0:00:15"]
[BlackClock "0:00:08"]
[Board "49"]

1. e4 {[%clk 0:03:00]}  c5 {[%clk 0:02:59]} 2. Ne2 {[%clk 0:03:00]}  d6 {[%clk 0:02:58]} 3. g3 {[%clk 0:03:01]}  Nf6 {[%clk 0:02:58]} 4. Bg2 {[%clk 0:03:01]}  h5 {[%clk 0:02:55]} 5. h3 {[%clk 0:03:01]}  Nc6 {[%clk 0:02:53]} 6. c3 {[%clk 0:03:00]}  e5 {[%clk 0:02:51]} 7. d4 {[%clk 0:02:57]}  cxd4 {[%clk 0:02:24]} 8. cxd4 {[%clk 0:02:58]}  Qb6 {[%clk 0:02:24]} 9. d5 {[%clk 0:02:48]}  Nd4 {[%clk 0:02:21]} 10. Nxd4 {[%clk 0:02:44]}  exd4 {[%clk 0:02:17]} 11. O-O {[%clk 0:02:43]}  g6 {[%clk 0:02:11]} 12. Nd2 {[%clk 0:02:34]}  Bg7 {[%clk 0:01:56]} 13. Nc4 {[%clk 0:02:28]}  Qa6 {[%clk 0:01:56]} 14. Nxd6+ {[%clk 0:02:22]}  Qxd6 {[%clk 0:01:50]} 15. e5 {[%clk 0:02:22]}  Qb6 {[%clk 0:01:47]} 16. exf6 {[%clk 0:02:22]}  Bxf6 {[%clk 0:01:47]} 17. Re1+ {[%clk 0:02:20]}  Kf8 {[%clk 0:01:47]} 18. Bf4 {[%clk 0:02:10]}  Kg7 {[%clk 0:01:46]} 19. h4 {[%clk 0:01:57]}  Bg4 {[%clk 0:01:39]} 20. Qb3 {[%clk 0:01:54]}  Rac8 {[%clk 0:01:24]} 21. Qxb6 {[%clk 0:01:42]}  axb6 {[%clk 0:01:24]} 22. Rac1 {[%clk 0:01:28]}  d3 {[%clk 0:01:20]} 23. Be4 {[%clk 0:01:16]}  Be2 {[%clk 0:01:12]} 24. Rxc8 {[%clk 0:01:00]}  Rxc8 {[%clk 0:01:11]} 25. d6 {[%clk 0:01:00]}  Rc2 {[%clk 0:00:58]} 26. d7 {[%clk 0:00:47]}  Kf8 {[%clk 0:00:29]} 27. Bxd3 {[%clk 0:00:39]}  Bxd3 {[%clk 0:00:25]} 28. Re8+ {[%clk 0:00:38]}  Kg7 {[%clk 0:00:25]} 29. Be5 {[%clk 0:00:24]}  Rc1+ {[%clk 0:00:22]} 30. Kh2 {[%clk 0:00:15]}  Be4 {[%clk 0:00:09]} 31. Bxf6+ {[%clk 0:00:15]}  Kxf6 {[%clk 0:00:08]} 32. d8=Q+ {[%clk 0:00:15]} 1-0


[Site "https://www.chess.com"]